bitfinex-derivatives/quotes_ETHF0:USTF0_20251021
["timestamp","ask_amount","ask_price","bid_price","bid_amount"]
[1761061513859,0.4412,4078.7,4078.5,3.2078]
[1761061514063,0.8794,4078.7,4078.5,3.6377]
[1761061514365,0.44119,4078.9,4078.6,0.4299]
[1761061514666,0.44119,4078.8,4078.7,0.4299]
[1761061514857,0.87941,4078.6,4078.5,3.2078]
[1761061515758,0.4382,4078.6,4078.5,3.2078]
[1761061515962,0.4382,4078.9,4078.6,0.4299]
[1761061516260,0.44005155,4079.6,4079.4,0.4299]
[1761061516565,0.00185155,4079.6,4079.5,0.4299]
[1761061517261,0.00185155,4079.6,4079.5,5.4299]
[1761061517465,0.00185155,4079.6,4079.5,0.4299]
[1761061517661,0.00185155,4079.6,4079.5,1.03502083]
[1761061517857,0.44104,4080.2,4080.1,0.4299]
[1761061518053,0.24504999,4080.8,4079.6,0.1176]
[1761061518054,0.87925,4080.1,4080.0,3.2078]
[1761061518458,0.4411,4079.7,4079.4,3.2078]
[1761061518657,0.623,4079.5,4079.4,3.2078]
[1761061518961,0.623,4079.5,4079.4,3.81296013]
[1761061519160,1.10271,4079.8,4079.4,0.00260414]
[1761061519359,1.06411,4079.5,4079.4,0.00260414]
[1761061520065,6.06411,4079.5,4079.4,0.00260414]
[1761061520263,1.06411,4079.5,4079.4,0.00260414]
[1761061520864,6.06411,4079.5,4079.4,0.00260414]
[1761061521270,5.623,4079.5,4079.4,0.00260414]
[1761061521970,0.44122,4078.5,4078.4,3.7858]
[1761061522166,0.44122,4078.5,4078.4,4.39131693]
[1761061522369,0.44119,4078.9,4078.6,0.578]
[1761061522571,1.1028,4079.5,4078.8,0.578]
[1761061522572,41.4002,4079.5,4078.8,0.578]
[1761061522868,1.04135,4079.2,4079.1,3.2078]
[1761061523269,1.04135,4079.2,4078.8,0.00206149]
[1761061523270,1.04138,4078.9,4078.8,0.00206149]
[1761061523471,1.28508,4078.9,4078.8,0.60817539]
[1761061523860,0.44117,4079.1,4078.8,1.18617539]
[1761061524068,1.04134,4079.3,4079.0,1.01917]
[1761061524276,0.44114,4079.3,4079.2,0.578]
[1761061524568,0.44114,4079.3,4079.1,3.2078]
[1761061524569,0.6002,4079.2,4079.1,3.2078]
[1761061524771,0.6002,4079.2,4079.1,3.81416915]
[1761061525170,1.04132,4079.4,4079.2,0.578]
[1761061525370,1.04132,4079.4,4079.3,1.18436915]
[1761061525572,0.44112,4079.4,4079.3,1.18436915]
[1761061525778,1.04132,4079.4,4079.3,0.60636915]
[1761061526270,0.44112,4079.4,4079.3,1.18436915]
[1761061526668,1.04132,4079.4,4079.3,1.18436915]
[1761061527168,0.44112,4079.4,4079.3,1.18436915]
[1761061528372,1.10268,4080.0,4079.4,0.578]
[1761061528373,0.6002,4080.0,4079.4,0.578]
[1761061528570,1.10261,4080.2,4079.6,3.2078]
[1761061528571,1.04129,4079.7,4079.6,3.2078]
[1761061528770,0.6002,4079.7,4079.6,4.39216915]
[1761061528973,0.44109,4079.7,4079.6,4.39216915]
[1761061529170,1.04129,4079.7,4079.6,3.81416915]
[1761061530585,0.00175035,4080.1,4080.0,0.8073]
[1761061530887,0.00175035,4080.1,4080.0,1.41366915]
[1761061531776,0.00175035,4080.1,4080.0,1.18436915]
[1761061531985,0.00175035,4080.1,4080.0,1.2465311]
[1761061531986,0.60195035,4080.1,4080.0,1.2465311]
[1761061532281,0.00175035,4080.1,4080.0,1.58761506]
[1761061532482,0.00175035,4080.1,4080.0,1.99807124]
[1761061532685,0.60195035,4080.1,4080.0,1.42007124]
[1761061532889,0.60195035,4080.1,4080.0,0.78031506]
[1761061533280,0.60195035,4080.1,4080.0,0.17394591]
[1761061533587,0.00175035,4080.1,4080.0,1.41323641]
[1761061533975,0.00175035,4080.1,4080.0,2.05299259]
[1761061534382,0.00175035,4080.1,4080.0,1.36322639]
[1761061534581,0.60195035,4080.1,4080.0,1.36322639]
[1761061534777,0.60195035,4080.1,4080.0,0.78522639]
[1761061535188,0.60195035,4080.1,4080.0,0.75728998]
[1761061535378,0.60195035,4080.1,4079.6,3.64889]
[1761061535379,0.6002,4079.7,4079.6,3.2078]
[1761061535585,0.6002,4079.7,4079.6,3.81320442]
[1761061535791,0.44109,4079.8,4079.7,0.578]
[1761061535987,0.44109,4079.8,4079.7,1.18340442]
[1761061536292,0.6002,4079.8,4079.7,0.60540442]
[1761061536684,5.6002,4079.8,4079.7,0.60540442]
[1761061536885,0.2437,4080.0,4079.3,0.578]
[1761061536886,9.9909,4080.0,4079.3,0.578]
[1761061537089,0.6002,4079.5,4079.4,0.60603843]
[1761061537388,0.00175035,4080.1,4079.6,0.578]
[1761061537588,0.44109,4079.7,4079.3,0.63887162]
[1761061537783,0.6002,4080.0,4079.5,0.578]
[1761061537984,0.44108,4079.8,4079.7,0.578]
[1761061538292,0.6002,4079.3,4079.2,3.2078]
[1761061538587,0.6002,4079.3,4079.2,3.81307655]
[1761061539798,1.10273,4079.8,4079.2,3.81307655]
[1761061539799,0.00175035,4080.1,4079.3,0.578]
[1761061539986,1.04131,4079.5,4079.4,0.60480095]
[1761061540582,1.04131,4079.5,4078.8,0.00206149]
[1761061540583,1.28508,4078.9,4078.8,0.00206149]
[1761061540783,13.65988,4078.9,4078.8,0.00206149]
[1761061540994,18.65988,4078.9,4078.8,0.00206149]
[1761061541201,9.49288,4078.9,4078.8,0.00206149]
[1761061541490,0.44128,4078.0,4077.9,1.21687162]
[1761061541799,1.04148,4078.0,4077.9,0.78964253]
[1761061541993,1.04148,4078.0,4077.9,0.18376809]
[1761061542190,0.44128,4078.0,4077.8,0.0393]
[1761061542389,0.6002,4077.9,4077.8,0.22102484]
[1761061542992,5.6002,4077.9,4077.8,0.22102484]
[1761061543193,14.7592,4077.9,4077.8,0.22102484]
[1761061543500,0.6002,4077.9,4077.8,0.22102484]
[1761061543904,9.7612,4077.9,4077.8,0.22102484]
[1761061545104,14.7612,4077.9,4077.8,0.04172612]
[1761061545800,14.7612,4077.9,4077.8,6.12e-06]
[1761061546001,17.969,4077.9,4077.8,6.12e-06]
[1761061546604,1.10357,4076.7,4076.0,3.2078]
[1761061546801,1.10357,4076.7,4076.0,3.7858]
[1761061546802,0.44148,4076.1,4076.0,3.7858]
[1761061547101,0.44146,4076.3,4076.1,0.578]
[1761061547301,1.04166,4076.3,4076.1,0.578]
[1761061547498,0.6002,4076.2,4076.1,0.578]
[1761061547696,0.6002,4076.2,4076.1,0.00317415]
[1761061547899,0.6002,4076.2,4076.1,0.1848664]
[1761061548098,0.6002,4076.2,4076.1,0.00317415]
[1761061548298,0.6002,4076.2,4076.1,0.58117415]
[1761061548504,0.00256676,4076.3,4076.2,1.01947]
[1761061548692,3.2078,4078.3,4077.1,0.578]
[1761061548693,0.44137,4077.2,4077.1,0.578]
[1761061548896,0.44137,4077.2,4077.1,3.2078]
[1761061548897,0.6002,4077.2,4077.1,3.2078]
[1761061549305,1.04163,4076.6,4076.5,3.2078]
[1761061549710,1.04387528,4076.6,4076.5,3.2078]
[1761061550600,10.20087528,4076.6,4076.5,3.2078]
[1761061551301,0.98847,4076.2,4076.1,0.00317415]
[1761061551511,0.98847,4076.2,4076.1,4.15e-06]
[1761061552006,0.547,4076.5,4076.2,0.5679]
[1761061552303,0.44145,4076.4,4076.2,0.5679]
[1761061552803,0.44147,4076.3,4076.2,0.44147]
[1761061553110,0.99067528,4076.6,4076.4,0.44145]
[1761061553406,0.44144,4076.5,4076.3,0.44145]
[1761061553608,0.44146,4076.3,4076.1,3.64927415]
[1761061553905,0.44145,4076.4,4076.2,1.00936]
[1761061554109,0.00224528,4076.6,4076.1,3.20780415]
[1761061554110,0.547,4076.2,4076.1,3.20780415]
[1761061554493,0.98847,4076.3,4076.2,0.44147]
[1761061554694,0.44145,4076.4,4076.2,0.44147]
[1761061554899,0.547,4076.2,4076.1,3.20780415]
[1761061555100,9.153,4076.2,4076.1,3.20780415]
[1761061555506,0.44147,4076.3,4076.1,3.77570415]
[1761061556608,0.547,4076.2,4076.1,3.20780415]
[1761061558101,0.547,4076.2,4076.1,4.15e-06]
[1761061558412,9.153,4076.2,4076.1,4.15e-06]
[1761061558604,0.44147,4076.3,4076.1,4.15e-06]
[1761061558806,0.44144,4076.5,4076.1,4.15e-06]
[1761061559004,0.547,4076.5,4076.4,3.2078]
[1761061559208,1.65061,4076.5,4076.1,4.15e-06]
[1761061559407,0.44147,4076.2,4076.1,4.15e-06]
[1761061560111,9.59447,4076.2,4076.1,4.15e-06]
[1761061560313,0.44146,4076.3,4076.1,4.15e-06]
[1761061560511,0.44147,4076.2,4076.1,4.15e-06]
[1761061560703,9.153,4076.5,4076.2,0.44146]
[1761061561009,0.44367528,4076.6,4076.4,3.2078]
[1761061561214,0.99067528,4076.6,4076.4,3.64925]
[1761061561405,0.99067528,4076.6,4076.4,3.2078]
[1761061561600,0.44367528,4076.6,4076.4,3.2078]
[1761061561805,0.44367528,4076.6,4076.5,0.5679]
[1761061561806,0.00224528,4076.6,4076.5,0.5679]
[1761061562402,0.00224528,4076.6,4076.4,3.64925]
[1761061562403,0.547,4076.5,4076.4,3.2078]
[1761061562808,0.44367528,4076.6,4076.4,3.2078]
[1761061563002,0.00224528,4076.6,4076.5,0.5679]
[1761061563410,1.10298,4078.8,4077.6,0.5679]
[1761061563716,1.10298,4078.8,4078.3,0.5679]
[1761061563717,0.547,4078.8,4078.3,0.5679]
[1761061563914,0.98819,4078.8,4078.7,3.2078]
[1761061564105,0.547,4078.8,4078.7,3.2078]
[1761061564305,0.00199995,4078.8,4078.7,8.2078]
[1761061564611,0.00199995,4078.8,4078.7,8.649]
[1761061564815,0.00199995,4078.8,4078.7,8.83032499]
[1761061565014,0.547,4080.1,4079.4,0.44112]
[1761061565214,9.59804,4080.2,4080.0,3.2078]
[1761061565421,0.44104,4080.2,4080.0,3.7757]
[1761061565917,1.34750999,4080.8,4080.0,3.7757]
[1761061565918,0.547,4080.4,4080.2,0.5679]
[1761061566216,0.0020944,4080.4,4080.2,0.57042067]
[1761061566513,0.5490944,4080.4,4080.2,0.57042067]
[1761061566816,0.98803,4080.3,4080.2,0.00252067]
[1761061567406,0.44103,4080.3,4080.2,0.00252067]
[1761061567806,0.98803,4080.3,4080.2,0.00252067]
[1761061568214,0.0020944,4080.4,4080.2,0.00252067]
[1761061568215,0.4431144,4080.4,4080.2,0.57042067]
[1761061568406,0.0020944,4080.4,4080.2,0.57042067]
[1761061568804,0.4431144,4080.4,4080.2,0.57042067]
[1761061569009,0.0020944,4080.4,4080.2,1.01145067]
[1761061569211,0.0020944,4080.4,4080.3,0.5679]
[1761061569517,13.45209418,4080.9,4080.7,0.44098]
[1761061569721,10.90311031,4080.9,4080.8,3.80786669]
[1761061569919,10.90311031,4080.9,4080.8,12.04303228]
[1761061570216,8.52275262,4080.9,4080.8,11.44296559]
[1761061570420,8.44967438,4080.9,4080.8,6.44296559]
[1761061570620,8.44967438,4080.9,4080.8,3.2078]
[1761061571012,18.44967438,4080.9,4080.8,3.2078]
[1761061571321,0.547,4079.9,4079.5,3.2078]
[1761061571522,0.547,4079.9,4079.7,0.44109]
[1761061571712,0.547,4079.8,4079.5,3.2078]
[1761061572021,0.44109,4079.8,4079.5,3.2078]
[1761061572321,0.2121,4080.0,4079.5,3.21013593]
[1761061572322,0.547,4079.6,4079.5,3.21013593]
[1761061575116,0.7591,4079.6,4079.5,3.21013593]
[1761061575920,0.7591,4079.6,4079.5,8.21013593]
[1761061576122,0.06771,4080.8,4080.7,0.44098]
[1761061576425,0.06771,4080.8,4080.7,3.64878]
[1761061576611,0.2121,4081.0,4080.7,3.64878]
[1761061577625,0.2121,4081.0,4080.7,3.2078]
[1761061577929,6.78967933,4080.8,4080.7,3.2078]
[1761061578121,7.33667933,4080.8,4080.7,3.2078]
[1761061578620,7.77764933,4080.8,4080.7,3.2078]
[1761061579031,7.33667933,4080.8,4080.7,3.2078]
[1761061579227,0.547,4080.8,4080.7,3.2078]
[1761061580313,0.547,4080.8,4080.7,6.38304336]
[1761061580726,0.547,4080.8,4080.7,3.2078]
[1761061582324,9.29887438,4080.9,4080.8,0.44097]
[1761061583522,1.3962,4080.8,4080.7,3.2078]
[1761061583723,1.3962,4080.8,4080.7,3.64878]
[1761061585932,7.90267438,4080.9,4080.7,3.64878]
[1761061586228,7.90267438,4080.9,4080.7,6.77661308]
[1761061586229,1.3962,4080.8,4080.7,6.77661308]
[1761061586437,1.3962,4080.8,4080.7,3.64878]
[1761061587133,7.90267438,4080.9,4080.7,3.64878]
[1761061587327,1.3962,4080.8,4080.7,3.64878]
[1761061587632,1.3962,4080.8,4080.7,3.2078]
[1761061588324,1.3962,4080.6,4080.3,0.44102]
[1761061588632,1.9806,4080.3,4080.2,0.44104]
[1761061589019,8.77027933,4080.3,4080.2,0.44104]
[1761061589331,1.3962,4080.2,4080.1,3.2078]
[1761061590928,8.18587933,4080.2,4080.1,3.2078]
[1761061591228,0.5844,4080.3,4080.2,0.44104]
[1761061591533,7.90267438,4080.9,4080.8,0.44097]
[1761061591738,14.69235371,4080.9,4080.8,3.64877]
[1761061591927,7.90267438,4080.9,4080.8,3.64877]
[1761061592133,7.90267438,4080.9,4080.8,4.25218159]
[1761061593331,9.29887438,4080.9,4080.8,4.25218159]
[1761061594238,9.29887438,4080.9,4080.8,5.10562196]
[1761061594729,9.29887438,4080.9,4080.8,5.53234215]
[1761061595130,16.08855371,4080.9,4080.8,5.53234215]
[1761061595332,16.08855371,4080.9,4080.8,4.25218159]
[1761061595632,16.08855371,4080.9,4080.8,3.81121159]
[1761061596827,9.29887438,4080.9,4080.8,3.81121159]
[1761061597432,7.90267438,4080.9,4080.8,5.52167707]
[1761061597629,7.90267438,4080.9,4080.8,3.81121159]
[1761061598034,0.3723,4083.1,4080.8,11.94862432]
[1761061598238,6.43342134,4083.0,4082.7,0.64106588]
[1761061598538,6.87416134,4083.0,4082.8,0.60341159]
[1761061598738,0.44074,4083.0,4082.9,0.60341159]
[1761061599227,0.44074,4083.0,4082.2,1.28213177]
[1761061599228,0.44082,4082.2,4082.1,0.15574241]
[1761061599535,0.5844,4082.4,4082.1,3.17822251]
[1761061599736,0.5844,4082.4,4082.2,3.2078]
[1761061600037,1.83702,4082.2,4082.1,0.00230497]
[1761061600332,0.5844,4082.4,4080.7,10.90350902]
[1761061600333,0.4409,4081.5,4080.7,10.90350902]
[1761061600524,0.5844,4081.7,4080.7,10.90350902]
[1761061600525,0.44092,4081.4,4081.2,3.2078]
[1761061600729,1.3962,4081.1,4081.0,3.1201365]
[1761061600935,1.32280088,4081.4,4080.7,12.58913559]
[1761061601131,1.10191,4082.8,4081.3,6.38877545]
[1761061601327,3.20983895,4083.0,4081.5,3.2078]
[1761061601543,0.44079,4082.5,4082.0,3.2078]
[1761061601734,0.44083,4082.2,4082.0,3.2078]
[1761061602234,0.44083,4082.2,4081.5,9.207]
[1761061602235,0.44086,4081.9,4081.5,9.207]
[1761061602424,0.44086,4081.9,4081.5,9.64789]
[1761061602629,0.44086,4081.9,4081.6,3.20825294]
[1761061602829,3.20983895,4083.0,4082.0,0.44084]
[1761061603128,3.20983895,4083.0,4081.8,3.2078]
[1761061603129,1.3962,4082.3,4081.8,3.2078]
[1761061603328,0.44084,4082.1,4081.8,3.64866]
[1761061603536,1.3962,4082.0,4081.8,3.64866]
[1761061603837,1.3962,4082.0,4081.5,9.207]
[1761061604025,1.3962,4081.6,4081.5,9.207]
[1761061604231,0.5844,4082.4,4081.5,9.207]
[1761061604232,3.02942441,4082.7,4082.1,1.1241]
[1761061604434,3.02942441,4082.7,4082.2,1.56491]
[1761061604731,3.02942441,4082.7,4082.3,0.44081]
[1761061605138,3.02942441,4082.7,4082.2,1.1241]
[1761061605139,3.02942441,4082.7,4082.4,0.4408]
[1761061605438,3.02942441,4082.7,4082.6,0.44078]
[1761061605831,3.94298733,4084.5,4083.1,1.1221]
[1761061606035,3.64851,4083.3,4082.8,0.44075]
[1761061606239,3.64851,4083.3,4082.6,15.59722948]
[1761061606240,1.3962,4083.0,4082.6,12.4368]
[1761061606433,1.3962,4083.0,4082.8,0.44075]
[1761061606830,1.39880135,4083.0,4082.8,0.44075]
[1761061607239,1.3962,4082.9,4082.7,0.44076]
[1761061607833,0.00260135,4083.0,4082.9,0.44075]
[1761061608039,1.3962,4082.9,4082.6,0.44077]
[1761061608338,1.3962,4082.7,4082.5,0.44078]
[1761061608535,0.00260135,4083.0,4082.0,1.10211]
[1761061608838,0.00260135,4083.0,4082.9,1.83525]
[1761061609046,0.00260135,4083.0,4082.9,5.04305]
[1761061609536,0.00260135,4083.0,4082.9,3.64855]
[1761061610336,0.00260135,4083.0,4082.9,1.83525]
[1761061610737,0.00260135,4083.0,4082.9,5.04305]
[1761061610939,1.91690135,4083.0,4082.9,3.2078]
[1761061611134,1.9143,4082.8,4082.1,3.2078]
[1761061611539,1.9143,4082.8,4082.4,0.4408]
[1761061611832,2.6155,4082.4,4082.1,3.64862]
[1761061612036,2.35512,4082.3,4082.1,3.2078]
[1761061612343,1.9143,4081.6,4081.4,0.44091]
[1761061614043,1.9143,4081.6,4081.4,2.24131]
[1761061614639,1.9143,4081.6,4081.4,0.44091]
[1761061614946,1.9143,4081.5,4081.4,0.44091]
[1761061615338,1.9143,4081.5,4081.2,0.44092]
[1761061615645,1.9143,4081.5,4081.3,0.44092]
[1761061615954,1.9143,4081.6,4080.8,3.2078]
[1761061616240,1.9143,4080.9,4080.7,0.18995235]
[1761061616547,6.9143,4080.8,4080.7,0.00261676]
[1761061617344,6.9143,4080.8,4080.7,0.18887302]
[1761061617345,1.9143,4080.8,4080.7,0.18887302]
[1761061617535,1.9143,4080.8,4080.7,0.00261676]
[1761061617731,5.1221,4080.9,4080.8,0.44097]
[1761061618039,5.1221,4080.9,4080.7,0.00261676]
[1761061618040,1.9143,4080.8,4080.7,0.00261676]
[1761061618436,6.9143,4080.8,4080.7,0.18618241]
[1761061618636,6.9143,4080.8,4080.7,0.00261676]
[1761061619045,1.9143,4080.8,4080.7,0.00261676]
[1761061619240,6.9143,4080.8,4080.7,0.00261676]
[1761061620745,1.9143,4080.8,4080.7,1.80301676]
[1761061620946,1.9143,4080.8,4080.7,0.00261676]
[1761061622042,0.44091,4081.4,4080.7,0.00261676]
[1761061622250,0.44093,4081.2,4081.0,0.44095]
[1761061622641,1.9143,4081.1,4081.0,0.44095]
[1761061623038,0.44095,4081.0,4080.7,0.00261676]
[1761061623238,1.9143,4080.9,4080.7,0.00261676]
[1761061623438,2.35526,4080.9,4080.7,0.00261676]
[1761061623649,0.7012,4080.3,4078.7,4.48417083]
[1761061623945,3.2078,4079.2,4078.7,3.2078]
[1761061624142,1.9143,4079.5,4079.3,0.44113]
[1761061624340,1.9143,4079.5,4079.1,1.8004]
[1761061624341,1.9143,4079.5,4078.7,3.2078]
[1761061624536,2.35547,4079.1,4078.4,0.18274299]
[1761061624749,1.9143,4078.9,4078.7,0.4412]
[1761061624947,2.35747878,4078.9,4078.7,0.44310096]
[1761061625354,0.87790648,4080.9,4078.7,0.44310096]
[1761061625355,0.87492428,4081.9,4080.0,0.7146]
[1761061625652,1.76125223,4084.7,4082.6,1.10195]
[1761061625954,0.87492428,4084.4,4084.2,0.4406]
[1761061626245,2.2003,4085.6,4084.4,2.24098]
[1761061626246,1.02571161,4084.5,4084.4,2.24098]
[1761061626441,1.02571161,4084.5,4084.4,2.47241997]
[1761061626442,1.02825988,4084.5,4084.4,2.47241997]
[1761061626647,1.02825988,4084.5,4084.4,0.67201997]
[1761061626836,0.1533356,4084.5,4084.4,0.67201997]
[1761061627038,8.3611356,4084.5,4083.1,3.2078]
[1761061627246,0.44069,4083.5,4082.8,1.8004]
[1761061627445,3.2078,4084.0,4083.0,0.44073]
[1761061627446,1.9143,4083.4,4083.0,0.44073]
[1761061627638,1.9143,4083.4,4083.1,0.35187982]
[1761061627836,1.9143,4083.4,4083.2,0.35187982]
[1761061628036,1.9143,4083.4,4083.3,0.35187982]
[1761061628444,1.9143,4083.4,4083.3,0.35177535]
[1761061628651,1.9143,4083.4,4083.2,3.64851]
[1761061629345,1.9143,4083.4,4083.3,0.35128923]
[1761061629848,9.39,4084.1,4083.3,0.35128923]
[1761061629849,1.9143,4084.0,4083.3,0.35128923]
[1761061630050,1.9143,4084.0,4083.4,0.79196923]
[1761061630236,1.9143,4084.0,4083.5,0.35128923]
[1761061630436,1.9143,4083.7,4083.6,0.35128923]
[1761061630855,6.9143,4083.7,4083.6,0.35128923]
[1761061631042,2.9141,4083.3,4083.2,3.2078]
[1761061631542,12.2911,4083.3,4083.2,3.2078]
[1761061632349,1.9143,4082.9,4082.6,3.2078]
[1761061632542,1.9143,4082.7,4082.6,3.2078]
[1761061632742,1.9143,4082.7,4082.3,0.44081]
[1761061632743,2.35507,4082.7,4082.3,0.44081]
[1761061633048,1.9143,4083.2,4082.6,3.64857]
[1761061633244,1.9143,4083.2,4083.0,0.44074]
[1761061633443,2.35502,4083.2,4083.0,0.00270873]
[1761061633644,1.9143,4083.2,4083.1,3.2078]
[1761061633845,1.9143,4083.8,4083.7,0.44066]
[1761061634150,1.9143,4083.7,4083.5,0.44068]
[1761061636651,1.9143,4083.7,4083.6,3.2078]
[1761061637454,2.35501,4083.2,4083.1,3.2078]
[1761061637750,1.9143,4083.2,4083.1,3.2078]
[1761061638645,6.841,4083.5,4083.4,0.44069]
[1761061638953,2.1201,4083.5,4083.4,0.72468498]
[1761061639353,9.353,4083.6,4083.4,1.16537498]
[1761061639550,0.1533356,4084.5,4083.7,0.44066]
[1761061639750,0.1533356,4084.5,4084.4,2.1004]
[1761061640256,0.1533356,4084.5,4084.4,7.82367888]
[1761061640446,9.54345,4085.7,4085.4,2.54088]
[1761061640641,0.15078733,4087.2,4085.7,2.2608]
[1761061640854,2.52879,4087.1,4086.9,3.2078]
[1761061641250,0.76558733,4087.2,4086.9,5.65441834]
[1761061641251,0.15078733,4087.2,4086.9,5.65441834]
[1761061641455,0.59286584,4087.2,4086.9,5.65697036]
[1761061641655,0.15257584,4087.2,4087.0,2.2608]
[1761061641853,0.4403,4087.1,4086.9,3.21035202]
[1761061642456,2.5288,4087.1,4086.9,3.21035202]
[1761061642751,0.4403,4087.1,4086.9,3.21035202]
[1761061642958,2.0885,4087.0,4086.9,3.21035202]
[1761061643560,0.4403,4087.1,4086.9,5.47115202]
[1761061643761,0.4403,4087.1,4086.9,3.21035202]
[1761061643951,2.24107584,4087.2,4086.9,3.21035202]
[1761061644153,2.5288,4087.0,4086.9,3.21035202]
[1761061644360,11.8788,4087.0,4086.9,0.00255202]
[1761061644658,2.0885,4087.0,4086.9,0.00255202]
[1761061644855,7.0885,4087.0,4086.9,0.00255202]
[1761061645155,7.0885,4087.0,4086.9,2.02e-06]
[1761061645657,2.0885,4087.0,4086.9,2.02e-06]
[1761061645955,16.4435,4087.0,4086.9,2.02e-06]
[1761061646662,0.4405,4085.2,4085.0,3.2078]
[1761061646955,2.529,4085.2,4085.0,3.2078]
[1761061647660,2.9374,4085.1,4085.0,0.00238655]
[1761061647956,2.52917,4083.6,4083.5,3.2078]
[1761061648156,2.52917,4083.6,4083.5,4.26116267]
[1761061648357,2.0885,4085.0,4083.6,2.2608]
[1761061648557,2.0885,4084.9,4083.9,2.2608]
[1761061648748,0.44062,4084.1,4084.0,3.31416267]
[1761061648951,9.376,4084.5,4084.2,2.7014]
[1761061649255,2.09022045,4084.9,4084.8,2.2608]
[1761061649256,0.00172045,4084.9,4084.8,2.2608]
[1761061649462,2.53076045,4084.9,4084.4,5.90918]
[1761061649661,0.44056,4084.7,4084.5,1.05306375]
[1761061649856,2.0885,4084.8,4084.6,0.33271202]
[1761061650061,0.00172045,4084.9,4084.7,3.03406154]
[1761061650355,2.0885,4085.8,4085.2,0.4405]
[1761061650554,2.0885,4085.8,4085.0,2.2608]
[1761061650555,9.372,4085.7,4085.6,2.2608]
[1761061650748,7.457,4085.7,4085.6,2.2608]
[1761061650954,9.5455,4085.7,4085.6,0.33271838]
[1761061651149,2.52896,4085.6,4085.5,3.2078]
[1761061651456,0.00234393,4085.6,4085.5,6.52204982]
[1761061651758,5.887,4086.6,4086.3,0.44038]
[1761061651961,5.887,4086.6,4086.5,5.4686]
[1761061652157,0.44034,4086.7,4086.5,5.4686]
[1761061652353,0.44034,4086.7,4086.5,3.2078]
[1761061652354,5.0,4086.7,4086.5,3.2078]
[1761061652553,9.371,4086.9,4085.2,0.84643604]
[1761061652554,0.44049,4085.3,4085.2,0.84643604]
[1761061652863,0.00174492,4085.3,4085.2,3.31406652]
[1761061653365,0.00174492,4085.3,4085.2,8.31406652]
[1761061653563,0.00174492,4085.3,4085.2,3.31406652]
[1761061653861,2.09024492,4085.3,4085.2,1.05326652]
[1761061654368,2.09024492,4085.3,4085.2,0.72036062]
[1761061654661,2.529,4085.2,4085.1,3.2078]
[1761061654966,7.529,4085.2,4085.1,3.2078]
[1761061655562,11.899,4085.2,4085.1,3.2078]
[1761061655762,2.529,4085.2,4085.1,4.25356473]
[1761061656263,2.529,4085.2,4085.1,3.2078]
[1761061656264,16.898,4085.2,4085.1,3.2078]
[1761061656668,2.0885,4085.0,4084.1,0.84643604]
[1761061656960,2.5291,4084.3,4084.2,1.04553991]
[1761061657158,11.8961,4084.3,4084.2,1.04553991]
[1761061657359,9.8096,4084.3,4084.2,1.04553991]
[1761061657563,0.4406,4084.3,4084.2,1.04553991]
[1761061657763,9.8096,4084.3,4084.2,1.04553991]
[1761061657956,2.0885,4084.8,4084.3,2.2608]
[1761061658161,0.44058,4084.5,4084.4,1.04553991]
[1761061658362,2.52908,4084.5,4084.4,1.04553991]
[1761061658958,0.44058,4084.5,4084.4,1.04553991]
[1761061659164,11.90008,4084.5,4084.4,1.04553991]
[1761061662272,11.4595,4084.5,4084.4,1.04553991]
[1761061662474,16.4595,4084.5,4084.4,1.04553991]
[1761061662672,16.4595,4084.5,4084.4,3.991e-05]
[1761061663063,2.0885,4084.3,4083.9,0.00300907]
[1761061663265,2.0885,4084.1,4083.9,0.63542089]
[1761061663472,9.81963,4084.0,4083.9,0.63542089]
[1761061664565,11.90813,4084.0,4083.9,0.63542089]
[1761061664760,11.90813,4084.0,4083.9,0.00300907]
[1761061666474,16.90813,4084.0,4083.9,9.07e-06]
[1761061666671,2.52918,4083.5,4083.3,0.63241182]
[1761061666873,2.52923,4083.1,4083.0,0.63241182]
[1761061667173,2.52923,4083.1,4082.9,0.63241182]
[1761061667364,2.52923,4083.1,4082.1,2.2608]
[1761061667365,0.44079,4082.5,4082.4,0.63241182]
[1761061667568,11.88329,4082.5,4082.4,0.63241182]
[1761061667769,11.88329,4082.5,4082.4,0.63427359]
[1761061667975,11.88329,4082.5,4082.4,0.00186177]
[1761061668274,16.88329,4082.5,4082.4,0.00186177]
[1761061668865,16.88329,4082.5,4081.4,3.2078]
[1761061668866,0.44085,4081.9,4081.8,0.63241182]
[1761061669076,0.44085,4081.9,4081.5,0.63241182]
[1761061669077,2.52939,4081.6,4081.5,0.63241182]
[1761061669270,2.52939,4081.6,4081.4,3.2078]
[1761061669472,9.347,4081.5,4081.4,3.2078]
[1761061669681,0.44082,4082.3,4081.9,2.2608]
[1761061669875,0.44082,4082.3,4081.9,0.00232052]
[1761061669876,2.52934,4082.1,4081.9,0.00232052]
[1761061670079,2.0885,4082.0,4081.9,0.00232052]
[1761061670278,42.8885,4082.0,4081.9,0.00232052]
[1761061670576,47.8885,4082.0,4081.9,0.00232052]
[1761061670772,0.44096,4080.9,4080.7,0.63252687]
[1761061670967,0.44098,4080.7,4080.5,3.84032687]
[1761061671173,0.44101,4080.5,4080.4,2.81042687]
[1761061671376,9.79101,4080.5,4080.4,2.36026509]
[1761061671878,0.44093,4081.2,4080.5,2.1779]
[1761061672067,9.79093,4081.2,4081.0,2.1779]
[1761061672272,0.00243349,4082.3,4082.2,2.1779]
[1761061672469,0.00243349,4082.3,4082.2,5.3857]
[1761061672873,0.00243349,4082.3,4082.2,11.01629325]
[1761061673074,3.2078,4083.1,4082.5,2.1779]
[1761061673376,13.00352,4083.1,4082.9,0.44074]
[1761061673678,3.2078,4083.1,4083.0,2.1779]
[1761061674074,3.65129623,4083.1,4083.0,2.1779]
[1761061674274,0.44075,4083.0,4082.9,0.1888463]
[1761061674479,0.44075,4083.0,4082.8,0.44075]
[1761061674680,0.44075,4083.0,4082.9,1.0229555]
[1761061675181,0.00276623,4083.1,4082.9,3.82474057]
[1761061675381,0.00276623,4083.1,4083.0,3.2008555]